[Event "23rd ETCC Women 2021"]
[Site "Catez"]
[Date "2021.11.12"]
[Round "1.16"]
[White "Zhukova, Natalia"]
[Black "Katkov, Michelle"]
[Result "0-1"]
[ECO "E12"]
[WhiteElo "2331"]
[BlackElo "2059"]
[Annotator "NA"]
[PlyCount "78"]
[EventDate "2021.11.08"]
[EventType "team-tourn"]
[EventCountry "SLO"]
[SourceTitle "playchess.com"]
[Source "ChessBase"]
[SourceQuality "1"]
[WhiteTeam "Ukraine"]
[BlackTeam "Israel"]
[WhiteTeamCountry "UKR"]
[BlackTeamCountry "ISR"]
[TimeControl "40/5400+30:1800+30"]

1. d4 {[%emt 0:00:04]} Nf6 {[%emt 0:00:06]} 2. c4 {[%emt 0:00:08]} e6 {[%emt 0:
00:05]} 3. Nf3 {[%emt 0:00:16]} b6 {[%emt 0:00:08]} 4. a3 {[%emt 0:00:24]} Bb7
{[%emt 0:00:11]} 5. Nc3 {[%emt 0:00:24]} d5 {[%emt 0:00:10]} 6. Qc2 {[%emt 0:
00:30]} Be7 {[%emt 0:05:58]} 7. cxd5 {[%emt 0:00:21]} Nxd5 {[%emt 0:00:17]} 8.
Bd2 {[%emt 0:00:19]} c5 {[%emt 0:04:23]} 9. dxc5 {[%emt 0:14:29]} Bxc5 {
[%emt 0:03:55]} 10. e4 {[%emt 0:11:30]} Nxc3 {[%emt 0:03:06]} 11. Bxc3 {
[%emt 0:00:08]} O-O {[%emt 0:00:46]} 12. Rd1 {[%emt 0:03:00]} Qc8 {[%emt 0:04:
22]} 13. Bd3 {[%emt 0:16:21]} Nd7 {[%emt 0:12:52]} 14. e5 {[%emt 0:02:18]} h6 {
[%emt 0:08:38]} 15. Bh7+ {[%emt 0:00:54]} Kh8 {[%emt 0:00:09]} 16. Be4 {
[%emt 0:00:09]} Bxe4 {[%emt 0:13:25]} 17. Qxe4 {[%emt 0:00:18]} Be7 {[%emt 0:
02:54]} 18. O-O {[%emt 0:06:49]} Nc5 {[%emt 0:06:09]} 19. Qf4 {[%emt 0:04:18]}
Qa6 {[%emt 0:05:47]} 20. Bb4 {[%emt 0:05:00]} Qb7 {[%emt 0:05:27]} 21. h4 {
[%emt 0:06:16]} Rac8 {[%emt 0:04:07]} 22. Nh2 {[%emt 0:12:21]} a5 {[%emt 0:04:
25]} 23. Bxc5 {[%emt 0:00:17]} Rxc5 {[%emt 0:01:53]} 24. Ng4 {[%emt 0:07:49]}
Kh7 {[%emt 0:02:38]} 25. Rd3 {[%emt 0:01:31]} h5 {[%emt 0:01:54]} 26. Nf6+ {
[%emt 0:05:14]} gxf6 {[%emt 0:01:17]} 27. exf6 {[%emt 0:00:15]} Rg8 {[%emt 0:
01:07]} 28. Rg3 {[%emt 0:02:21]} Rxg3 {[%emt 0:02:04]} 29. fxg3 {[%emt 0:00:02]
} Rc2 {[%emt 0:00:50]} 30. Rf3 {[%emt 0:00:05]} Bc5+ {[%emt 0:00:58]} 31. Kh2 {
[%emt 0:00:05]} Qd5 {[%emt 0:01:05]} 32. b4 {[%emt 0:01:51]} axb4 {[%emt 0:01:
45]} 33. axb4 {[%emt 0:00:01]} Rc4 {[%emt 0:01:11]} 34. Qb8 {[%emt 0:00:41]}
Bd6 {[%emt 0:01:23]} 35. Qe8 {[%emt 0:00:19]} Rxh4+ {[%emt 0:00:27]} 36. Kg1 {
[%emt 0:00:02]} Qd1+ {[%emt 0:00:21]} 37. Rf1 {[%emt 0:01:18]} Rh1+ {[%emt 0:
00:06]} 38. Kxh1 {[%emt 0:00:03]} Qxf1+ {[%emt 0:00:05]} 39. Kh2 {[%emt 0:00:
02]} Qxf6 {[%emt 0:00:14]} 0-1

[Event "23rd ETCC Women 2021"]
[Site "Catez"]
[Date "2021.11.12"]
[Round "1.17"]
[White "Mammadzada, Gunay"]
[Black "Caglar, Sila"]
[Result "1-0"]
[ECO "B42"]
[WhiteElo "2459"]
[BlackElo "2250"]
[Annotator "ChessBase"]
[PlyCount "101"]
[EventDate "2021.11.08"]
[EventType "team-tourn"]
[EventCountry "SLO"]
[SourceTitle "playchess.com"]
[Source "ChessBase"]
[SourceQuality "1"]
[WhiteTeam "Azerbaijan"]
[BlackTeam "Turkey"]
[WhiteTeamCountry "AZE"]
[BlackTeamCountry "TUR"]
[TimeControl "40/5400+30:1800+30"]

1. e4 {[%emt 0:00:05]} c5 {[%emt 0:00:03]} 2. Nf3 {[%emt 0:00:06]} e6 {[%emt 0:
00:06]} 3. d4 {[%emt 0:00:04]} cxd4 {[%emt 0:00:04]} 4. Nxd4 {[%emt 0:00:04]}
a6 {[%emt 0:00:06]} 5. Bd3 {[%emt 0:00:53]} Nc6 {[%emt 0:00:06]} 6. Nxc6 {
[%emt 0:01:17]} dxc6 {[%emt 0:00:07]} 7. Nd2 {[%emt 0:03:22]} e5 {[%emt 0:00:
04]} 8. Nc4 {[%emt 0:05:52]} Be6 {[%emt 0:00:12]} 9. Qf3 {[%emt 0:05:14]} Nf6 {
[%emt 0:02:52]} 10. O-O {[%emt 0:02:40]} Bxc4 {[%emt 0:12:32]} 11. Bxc4 {
[%emt 0:00:03]} Qd4 {[%emt 0:01:06]} 12. Bd3 {[%emt 0:20:29]} Be7 {[%emt 0:00:
33]} 13. c3 {[%emt 0:08:58]} Qd6 {[%emt 0:00:53]} 14. a4 {[%emt 0:01:39]} a5 {
[%emt 0:05:01]} 15. Bc4 {[%emt 0:03:52]} O-O {[%emt 0:05:07]} 16. Qe2 {[%emt 0:
02:26]} Nd7 {[%emt 0:15:24]} 17. Be3 {[%emt 0:02:10]} Rad8 {[%emt 0:06:05]} 18.
Rfd1 {[%emt 0:04:04]} Qg6 {[%emt 0:07:10]} 19. Qc2 {[%emt 0:05:23]} Nc5 {
[%emt 0:02:32]} 20. f3 {[%emt 0:00:59]} Rd6 {[%emt 0:12:25]} 21. Kh1 {[%emt 0:
05:47]} Nd7 {[%emt 0:04:49]} 22. Rd2 {[%emt 0:07:28]} Rd8 {[%emt 0:04:04]} 23.
Rad1 {[%emt 0:01:44]} Qf6 {[%emt 0:03:34]} 24. Rxd6 {[%emt 0:03:46]} Bxd6 {
[%emt 0:00:05]} 25. Qb3 {[%emt 0:02:31]} Nc5 {[%emt 0:07:58]} 26. Bxf7+ {
[%emt 0:06:35]} Kf8 {[%emt 0:02:34]} 27. Qc4 {[%emt 0:04:49]} Qxf7 {[%emt 0:07:
20]} 28. Qxf7+ {[%emt 0:00:12]} Kxf7 {[%emt 0:00:01]} 29. Bxc5 {[%emt 0:00:06]}
Be7 {[%emt 0:01:00]} 30. Rxd8 {[%emt 0:00:27]} Bxd8 {[%emt 0:00:00]} 31. Kg1 {
[%emt 0:01:00]} Ke6 {[%emt 0:01:21]} 32. Kf2 {[%emt 0:00:16]} b6 {[%emt 0:00:
40]} 33. Be3 {[%emt 0:00:30]} Kd6 {[%emt 0:00:32]} 34. Ke2 {[%emt 0:00:26]} Bc7
{[%emt 0:00:33]} 35. Kd3 {[%emt 0:01:21]} b5 {[%emt 0:00:23]} 36. b3 {[%emt 0:
00:35]} Bd8 {[%emt 0:00:33]} 37. g3 {[%emt 0:00:24]} h5 {[%emt 0:00:33]} 38. f4
{[%emt 0:00:42]} g6 {[%emt 0:00:30]} 39. h3 {[%emt 0:01:06]} Ke6 {[%emt 0:00:
28]} 40. axb5 {[%emt 0:00:22]} cxb5 {[%emt 0:00:07]} 41. c4 {[%emt 0:30:11]}
bxc4+ {[%emt 0:07:31]} 42. Kxc4 {[%emt 0:00:00]} Bc7 {[%emt 0:00:54]} 43. fxe5
{[%emt 0:00:00]} Bxe5 {[%emt 0:04:15]} 44. Bf4 {[%emt 0:00:00]} Bf6 {[%emt 0:
12:32]} 45. Bc7 {[%emt 0:00:00]} h4 {[%emt 0:00:35]} 46. g4 {[%emt 0:00:00]}
Be7 {[%emt 0:02:43]} 47. Kd3 {[%emt 0:00:00]} Bb4 {[%emt 0:00:30]} 48. Bd8 {
[%emt 0:00:00]} Ke5 {[%emt 0:00:08]} 49. Bxh4 {[%emt 0:00:00]} Kf4 {[%emt 0:00:
08]} 50. Bf6 {[%emt 0:00:00]} g5 {[%emt 0:01:57]} 51. e5 {[%emt 0:00:00]} 1-0

[Event "23rd ETCC Women 2021"]
[Site "Catez"]
[Date "2021.11.12"]
[Round "1.18"]
[White "Kocyigit, Buse Naz"]
[Black "Mammadova, Gulnar"]
[Result "0-1"]
[ECO "D00"]
[WhiteElo "2034"]
[BlackElo "2395"]
[Annotator "NA"]
[PlyCount "74"]
[EventDate "2021.11.08"]
[EventType "team-tourn"]
[EventCountry "SLO"]
[SourceTitle "playchess.com"]
[Source "ChessBase"]
[SourceQuality "1"]
[WhiteTeam "Turkey"]
[BlackTeam "Azerbaijan"]
[WhiteTeamCountry "TUR"]
[BlackTeamCountry "AZE"]
[TimeControl "40/5400+30:1800+30"]

1. Nf3 {[%emt 0:00:04]} Nf6 {[%emt 0:00:08]} 2. d4 {[%emt 0:00:05]} g6 {
[%emt 0:00:08]} 3. Nc3 {[%emt 0:00:11]} d5 {[%emt 0:00:36]} 4. Bf4 {[%emt 0:00:
06]} Bg7 {[%emt 0:01:14]} 5. Qd2 {[%emt 0:00:06]} Bf5 {[%emt 0:04:06]} 6. Ne5 {
[%emt 0:10:31]} c6 {[%emt 0:05:19]} 7. f3 {[%emt 0:10:26]} Nbd7 {[%emt 0:05:16]
} 8. g4 {[%emt 0:17:40]} Be6 {[%emt 0:00:15]} 9. h4 {[%emt 0:02:20]} h5 {
[%emt 0:06:14]} 10. g5 {[%emt 0:03:56]} Nh7 {[%emt 0:04:06]} 11. O-O-O {
[%emt 0:10:04]} Nxe5 {[%emt 0:04:56]} 12. Bxe5 {[%emt 0:01:35]} Bxe5 {[%emt 0:
01:55]} 13. dxe5 {[%emt 0:00:03]} Qa5 {[%emt 0:05:06]} 14. Kb1 {[%emt 0:11:48]}
b5 {[%emt 0:16:56]} 15. Ne4 {[%emt 0:01:52]} Qb6 {[%emt 0:09:21]} 16. Ng3 {
[%emt 0:06:38]} Nf8 {[%emt 0:00:32]} 17. e3 {[%emt 0:01:34]} Nd7 {[%emt 0:02:
25]} 18. f4 {[%emt 0:00:33]} Nc5 {[%emt 0:00:23]} 19. Bg2 {[%emt 0:07:10]} b4 {
[%emt 0:03:53]} 20. Qd4 {[%emt 0:04:02]} Qa5 {[%emt 0:04:23]} 21. b3 {[%emt 0:
04:44]} Na6 {[%emt 0:00:56]} 22. e4 {[%emt 0:01:46]} Nc7 {[%emt 0:03:03]} 23.
Qb2 {[%emt 0:04:10]} Bg4 {[%emt 0:02:15]} 24. e6 {[%emt 0:00:22]} O-O-O {
[%emt 0:01:17]} 25. Bh3 {[%emt 0:00:33]} Bxh3 {[%emt 0:03:31]} 26. Rxh3 {
[%emt 0:00:02]} Nxe6 {[%emt 0:00:07]} 27. Rf1 {[%emt 0:01:00]} dxe4 {[%emt 0:
00:18]} 28. Rhh1 {[%emt 0:00:33]} e3 {[%emt 0:01:10]} 29. f5 {[%emt 0:00:18]}
Nd4 {[%emt 0:01:12]} 30. fxg6 {[%emt 0:00:04]} fxg6 {[%emt 0:00:05]} 31. Re1 {
[%emt 0:00:54]} Qe5 {[%emt 0:01:40]} 32. Ne2 {[%emt 0:00:03]} Rhf8 {[%emt 0:00:
50]} 33. a3 {[%emt 0:00:50]} a5 {[%emt 0:05:03]} 34. axb4 {[%emt 0:00:01]} axb4
{[%emt 0:00:06]} 35. Qa1 {[%emt 0:00:50]} Kb7 {[%emt 0:00:21]} 36. Qa4 {
[%emt 0:00:52]} Nxc2 {[%emt 0:01:23]} 37. Rc1 {[%emt 0:00:42]} Na3+ {[%emt 0:
00:18]} 0-1

[Event "23rd ETCC Women 2021"]
[Site "Catez"]
[Date "2021.11.12"]
[Round "1.19"]
[White "Balajayeva, Khanim"]
[Black "Aydin, Gulenay"]
[Result "1-0"]
[ECO "B19"]
[WhiteElo "2369"]
[BlackElo "2114"]
[Annotator "NA"]
[PlyCount "53"]
[EventDate "2021.11.08"]
[EventType "team-tourn"]
[EventCountry "SLO"]
[SourceTitle "playchess.com"]
[Source "ChessBase"]
[SourceQuality "1"]
[WhiteTeam "Azerbaijan"]
[BlackTeam "Turkey"]
[WhiteTeamCountry "AZE"]
[BlackTeamCountry "TUR"]
[TimeControl "40/5400+30:1800+30"]

1. e4 {[%emt 0:00:03]} c6 {[%emt 0:00:11]} 2. d4 {[%emt 0:04:54]} d5 {[%emt 0:
00:14]} 3. Nc3 {[%emt 0:00:53]} dxe4 {[%emt 0:00:43]} 4. Nxe4 {[%emt 0:00:36]}
Bf5 {[%emt 0:00:47]} 5. Ng3 {[%emt 0:01:05]} Bg6 {[%emt 0:00:40]} 6. h4 {
[%emt 0:04:00]} h6 {[%emt 0:01:32]} 7. h5 {[%emt 0:01:28]} Bh7 {[%emt 0:00:09]}
8. Nf3 {[%emt 0:02:22]} e6 {[%emt 0:03:48]} 9. Bd3 {[%emt 0:01:20]} Bxd3 {
[%emt 0:00:10]} 10. Qxd3 {[%emt 0:00:05]} Nf6 {[%emt 0:01:09]} 11. Bd2 {
[%emt 0:03:17]} Nbd7 {[%emt 0:13:57]} 12. O-O-O {[%emt 0:02:43]} Be7 {[%emt 0:
06:54]} 13. Kb1 {[%emt 0:20:04]} Qb6 {[%emt 0:12:47]} 14. Rhe1 {[%emt 0:14:45]}
O-O {[%emt 0:12:02]} 15. Qc4 {[%emt 0:23:43]} Nd5 {[%emt 0:15:57]} 16. Ne4 {
[%emt 0:02:26]} Rac8 {[%emt 0:14:40]} 17. g4 {[%emt 0:01:42]} c5 {[%emt 0:03:
40]} 18. g5 {[%emt 0:03:10]} cxd4 {[%emt 0:02:15]} 19. Qd3 {[%emt 0:03:30]} Bb4
{[%emt 0:07:17]} 20. gxh6 {[%emt 0:04:19]} f5 {[%emt 0:00:56]} 21. Rg1 {
[%emt 0:01:37]} Rf7 {[%emt 0:00:36]} 22. Neg5 {[%emt 0:01:48]} Bxd2 {[%emt 0:
00:26]} 23. h7+ {[%emt 0:00:18]} Kh8 {[%emt 0:00:01]} 24. Nxf7+ {[%emt 0:00:04]
} Kxh7 {[%emt 0:00:04]} 25. Rxd2 {[%emt 0:01:09]} Nc3+ {[%emt 0:01:00]} 26. Ka1
{[%emt 0:00:14]} Nc5 {[%emt 0:01:00]} 27. Qxd4 {[%emt 0:00:39]} 1-0

[Event "23rd ETCC Women 2021"]
[Site "Catez"]
[Date "2021.11.12"]
[Round "1.20"]
[White "Onur, Cigdem"]
[Black "Beydullayeva, Govhar"]
[Result "0-1"]
[ECO "B96"]
[WhiteElo "2015"]
[BlackElo "2278"]
[Annotator "NA"]
[PlyCount "114"]
[EventDate "2021.11.08"]
[EventType "team-tourn"]
[EventCountry "SLO"]
[SourceTitle "playchess.com"]
[Source "ChessBase"]
[SourceQuality "1"]
[WhiteTeam "Turkey"]
[BlackTeam "Azerbaijan"]
[WhiteTeamCountry "TUR"]
[BlackTeamCountry "AZE"]
[TimeControl "40/5400+30:1800+30"]

1. e4 {[%emt 0:00:08]} c5 {[%emt 0:00:08]} 2. Nf3 {[%emt 0:00:07]} d6 {[%emt 0:
00:03]} 3. d4 {[%emt 0:00:04]} cxd4 {[%emt 0:00:07]} 4. Nxd4 {[%emt 0:00:06]}
Nf6 {[%emt 0:00:03]} 5. Nc3 {[%emt 0:00:04]} a6 {[%emt 0:00:02]} 6. Bg5 {
[%emt 0:00:05]} e6 {[%emt 0:00:25]} 7. f4 {[%emt 0:00:17]} Nbd7 {[%emt 0:00:31]
} 8. Qf3 {[%emt 0:00:38]} Qc7 {[%emt 0:00:18]} 9. O-O-O {[%emt 0:00:41]} b5 {
[%emt 0:00:22]} 10. Bd3 {[%emt 0:01:46]} Bb7 {[%emt 0:00:10]} 11. Rhe1 {
[%emt 0:01:00]} Qb6 {[%emt 0:00:55]} 12. Bxf6 {[%emt 0:15:35]} Nxf6 {[%emt 0:
00:06]} 13. Qh3 {[%emt 0:06:22]} Be7 {[%emt 0:01:10]} 14. e5 {[%emt 0:11:35]}
dxe5 {[%emt 0:04:09]} 15. fxe5 {[%emt 0:01:33]} Nd5 {[%emt 0:00:43]} 16. Ne4 {
[%emt 0:13:18]} O-O-O {[%emt 0:10:53]} 17. Nf3 {[%emt 0:35:29]} Nb4 {[%emt 0:
15:08]} 18. Kb1 {[%emt 0:01:33]} Qa5 {[%emt 0:06:53]} 19. a3 {[%emt 0:02:17]}
Nxd3 {[%emt 0:00:15]} 20. Rxd3 {[%emt 0:02:45]} Rxd3 {[%emt 0:06:25]} 21. cxd3
{[%emt 0:00:06]} b4 {[%emt 0:02:41]} 22. axb4 {[%emt 0:01:29]} Bxb4 {[%emt 0:
04:24]} 23. Rc1+ {[%emt 0:00:35]} Kb8 {[%emt 0:00:12]} 24. Qg4 {[%emt 0:02:02]}
Rd8 {[%emt 0:20:13]} 25. Qxg7 {[%emt 0:02:36]} Qb5 {[%emt 0:08:05]} 26. Nf2 {
[%emt 0:00:35]} Ba3 {[%emt 0:00:56]} 27. Rc2 {[%emt 0:00:33]} Rc8 {[%emt 0:01:
33]} 28. Nd4 {[%emt 0:00:18]} Qb6 {[%emt 0:03:08]} 29. Nd1 {[%emt 0:00:09]}
Qxd4 {[%emt 0:03:06]} 30. Rxc8+ {[%emt 0:00:14]} Bxc8 {[%emt 0:00:07]} 31. bxa3
{[%emt 0:00:09]} Qxd3+ {[%emt 0:00:09]} 32. Kc1 {[%emt 0:00:04]} Qxa3+ {
[%emt 0:00:24]} 33. Kd2 {[%emt 0:00:38]} Qb4+ {[%emt 0:01:47]} 34. Nc3 {
[%emt 0:01:06]} Qd4+ {[%emt 0:06:35]} 35. Kc2 {[%emt 0:00:10]} h5 {[%emt 0:01:
30]} 36. Qg5 {[%emt 0:01:22]} h4 {[%emt 0:01:02]} 37. Ne2 {[%emt 0:00:47]} Qe4+
{[%emt 0:02:19]} 38. Kd2 {[%emt 0:00:07]} Bb7 {[%emt 0:00:26]} 39. g3 {[%emt 0:
00:29]} Qd5+ {[%emt 0:00:15]} 40. Kc3 {[%emt 0:00:42]} f5 {[%emt 0:01:52]} 41.
Qf4 {[%emt 0:10:23]} Qa5+ {[%emt 0:01:51]} 42. Kd4 {[%emt 0:02:03]} Qb6+ {
[%emt 0:04:29]} 43. Kc3 {[%emt 0:00:54]} Qa5+ {[%emt 0:00:18]} 44. Kd4 {
[%emt 0:00:15]} hxg3 {[%emt 0:12:17]} 45. Nxg3 {[%emt 0:13:21]} Qb4+ {[%emt 0:
03:02]} 46. Ke3 {[%emt 0:00:06]} Qb6+ {[%emt 0:00:05]} 47. Qd4 {[%emt 0:02:02]}
f4+ {[%emt 0:00:07]} 48. Kd3 {[%emt 0:01:01]} Qxd4+ {[%emt 0:00:04]} 49. Kxd4 {
[%emt 0:00:03]} fxg3 {[%emt 0:00:02]} 50. hxg3 {[%emt 0:00:09]} Kc7 {[%emt 0:
00:37]} 51. g4 {[%emt 0:02:23]} Bf3 {[%emt 0:00:11]} 52. g5 {[%emt 0:00:05]}
Bh5 {[%emt 0:00:03]} 53. Kc5 {[%emt 0:00:10]} Bg6 {[%emt 0:00:04]} 54. Kb4 {
[%emt 0:00:14]} Kc6 {[%emt 0:00:04]} 55. Ka5 {[%emt 0:00:05]} Kd5 {[%emt 0:00:
04]} 56. Kxa6 {[%emt 0:00:13]} Kxe5 {[%emt 0:00:03]} 57. Kb5 {[%emt 0:00:08]}
Kd4 {[%emt 0:00:06]} 0-1

[Event "23rd ETCC Women 2021"]
[Site "Catez"]
[Date "2021.11.12"]
[Round "1.21"]
[White "Cramling, Pia"]
[Black "Guichard, Pauline"]
[Result "1-0"]
[ECO "D43"]
[WhiteElo "2457"]
[BlackElo "2409"]
[Annotator "ChessBase"]
[PlyCount "85"]
[EventDate "2021.11.08"]
[EventType "team-tourn"]
[EventCountry "SLO"]
[SourceTitle "playchess.com"]
[Source "ChessBase"]
[SourceQuality "1"]
[WhiteTeam "Sweden"]
[BlackTeam "France"]
[WhiteTeamCountry "SWE"]
[BlackTeamCountry "FRA"]
[TimeControl "40/5400+30:1800+30"]

1. d4 {[%emt 0:00:06]} Nf6 {[%emt 0:00:05]} 2. c4 {[%emt 0:00:07]} e6 {[%emt 0:
00:05]} 3. Nf3 {[%emt 0:00:11]} d5 {[%emt 0:00:08]} 4. Nc3 {[%emt 0:00:19]}
dxc4 {[%emt 0:00:14]} 5. Qa4+ {[%emt 0:01:30]} c6 {[%emt 0:03:54]} 6. Qxc4 {
[%emt 0:00:11]} b5 {[%emt 0:00:08]} 7. Qd3 {[%emt 0:00:09]} a6 {[%emt 0:00:16]}
8. Bg5 {[%emt 0:03:54]} c5 {[%emt 0:01:39]} 9. Bxf6 {[%emt 0:01:26]} gxf6 {
[%emt 0:00:33]} 10. d5 {[%emt 0:00:10]} Bb7 {[%emt 0:03:32]} 11. e4 {[%emt 0:
00:56]} Nd7 {[%emt 0:06:31]} 12. Rd1 {[%emt 0:06:06]} Qc7 {[%emt 0:02:39]} 13.
Be2 {[%emt 0:04:46]} O-O-O {[%emt 0:01:16]} 14. O-O {[%emt 0:01:00]} Kb8 {
[%emt 0:00:47]} 15. dxe6 {[%emt 0:20:33]} fxe6 {[%emt 0:01:28]} 16. a4 {
[%emt 0:00:17]} b4 {[%emt 0:16:45]} 17. Nb1 {[%emt 0:00:32]} f5 {[%emt 0:08:40]
} 18. exf5 {[%emt 0:07:56]} e5 {[%emt 0:01:15]} 19. Qe3 {[%emt 0:20:16]} Bd6 {
[%emt 0:17:12]} 20. Ng5 {[%emt 0:02:51]} Rhg8 {[%emt 0:10:01]} 21. Bc4 {
[%emt 0:05:08]} Nf6 {[%emt 0:03:27]} 22. f3 {[%emt 0:04:18]} e4 {[%emt 0:04:22]
} 23. Rxd6 {[%emt 0:02:24]} Qxd6 {[%emt 0:01:00]} 24. Bxg8 {[%emt 0:00:47]}
Rxg8 {[%emt 0:00:54]} 25. Nxe4 {[%emt 0:01:12]} Qe5 {[%emt 0:04:29]} 26. Nbd2 {
[%emt 0:05:56]} Qxb2 {[%emt 0:10:20]} 27. Rb1 {[%emt 0:04:29]} Qe5 {[%emt 0:01:
21]} 28. Qxc5 {[%emt 0:00:18]} Nd5 {[%emt 0:00:41]} 29. Qd6+ {[%emt 0:03:14]}
Qxd6 {[%emt 0:00:14]} 30. Nxd6 {[%emt 0:00:04]} Bc6 {[%emt 0:00:38]} 31. a5 {
[%emt 0:00:40]} Kc7 {[%emt 0:00:29]} 32. N6c4 {[%emt 0:00:46]} h5 {[%emt 0:00:
53]} 33. Ne4 {[%emt 0:01:34]} h4 {[%emt 0:00:31]} 34. Kf2 {[%emt 0:00:54]} Nf4
{[%emt 0:00:31]} 35. g3 {[%emt 0:00:31]} Nh3+ {[%emt 0:00:20]} 36. Ke3 {
[%emt 0:00:41]} hxg3 {[%emt 0:00:41]} 37. hxg3 {[%emt 0:00:19]} Bxe4 {[%emt 0:
00:06]} 38. fxe4 {[%emt 0:01:03]} Rxg3+ {[%emt 0:00:03]} 39. Kd4 {[%emt 0:00:
06]} b3 {[%emt 0:01:17]} 40. Ne3 {[%emt 0:00:45]} Nf4 {[%emt 0:00:33]} 41. Rxb3
{[%emt 0:31:38]} Ne2+ {[%emt 0:01:35]} 42. Ke5 {[%emt 0:00:00]} Rg8 {[%emt 0:
00:25]} 43. Nd5+ {[%emt 0:00:00]} 1-0

[Event "23rd ETCC Women 2021"]
[Site "Catez"]
[Date "2021.11.12"]
[Round "1.23"]
[White "Andric, Jelena"]
[Black "Benmesbah, Natacha"]
[Result "1-0"]
[ECO "E67"]
[WhiteElo "2041"]
[BlackElo "2256"]
[Annotator "NA"]
[PlyCount "81"]
[EventDate "2021.11.08"]
[EventType "team-tourn"]
[EventCountry "SLO"]
[SourceTitle "playchess.com"]
[Source "ChessBase"]
[SourceQuality "1"]
[WhiteTeam "Sweden"]
[BlackTeam "France"]
[WhiteTeamCountry "SWE"]
[BlackTeamCountry "FRA"]
[TimeControl "40/5400+30:1800+30"]

1. Nf3 {[%emt 0:54:26]} d6 {[%emt 1:23:49]} 2. c4 {[%emt 0:00:30]} Nf6 {
[%emt 0:00:30]} 3. g3 {[%emt 0:00:30]} g6 {[%emt 0:00:30]} 4. Nc3 {[%emt 0:00:
30]} Bg7 {[%emt 0:00:30]} 5. Bg2 {[%emt 0:00:30]} e5 {[%emt 0:00:30]} 6. d4 {
[%emt 0:00:30]} Nbd7 {[%emt 0:00:30]} 7. O-O {[%emt 0:00:30]} O-O {[%emt 0:00:
30]} 8. dxe5 {[%emt 0:00:30]} dxe5 {[%emt 0:00:30]} 9. Qc2 {[%emt 0:00:30]} c6
{[%emt 0:00:30]} 10. Rd1 {[%emt 0:00:30]} Qe7 {[%emt 0:00:30]} 11. e4 {[%emt 0:
00:30]} Re8 {[%emt 0:00:30]} 12. h3 {[%emt 0:00:30]} h6 {[%emt 0:00:30]} 13.
Be3 {[%emt 0:00:30]} a5 {[%emt 0:00:30]} 14. Na4 {[%emt 0:00:30]} b5 {[%emt 0:
00:30]} 15. cxb5 {[%emt 0:00:30]} cxb5 {[%emt 0:00:30]} 16. Nc3 {[%emt 0:00:30]
} Bb7 {[%emt 0:00:30]} 17. Ne1 {[%emt 0:00:30]} b4 {[%emt 0:00:30]} 18. Nd5 {
[%emt 0:00:30]} Nxd5 {[%emt 0:00:30]} 19. exd5 {[%emt 0:00:30]} Qd6 {[%emt 0:
00:30]} 20. Qd2 {[%emt 0:00:30]} Kh7 {[%emt 0:00:30]} 21. a3 {[%emt 0:00:30]}
Nf6 {[%emt 0:00:30]} 22. axb4 {[%emt 0:00:30]} axb4 {[%emt 0:00:30]} 23. Rxa8 {
[%emt 0:00:30]} Bxa8 {[%emt 0:00:30]} 24. Nc2 {[%emt 0:00:30]} Rb8 {[%emt 0:00:
30]} 25. Ba7 {[%emt 0:00:30]} Rb5 {[%emt 0:00:30]} 26. Ne3 {[%emt 0:00:30]} Qa6
{[%emt 0:00:30]} 27. Bf1 {[%emt 0:00:30]} Qxa7 {[%emt 0:00:30]} 28. Bxb5 {
[%emt 0:00:30]} Ne4 {[%emt 0:00:30]} 29. Qc2 {[%emt 0:00:30]} Nxg3 {[%emt 0:00:
30]} 30. Bc6 {[%emt 0:00:30]} b3 {[%emt 0:00:30]} 31. Qc4 {[%emt 0:00:30]} Bf6
{[%emt 0:00:30]} 32. Bxa8 {[%emt 0:00:30]} Bg5 {[%emt 0:00:30]} 33. Ng4 {
[%emt 0:00:30]} h5 {[%emt 0:00:30]} 34. Nxe5 {[%emt 0:00:30]} Nf5 {[%emt 0:00:
30]} 35. d6 {[%emt 0:00:30]} Kg7 {[%emt 0:00:30]} 36. Qxf7+ {[%emt 0:00:30]}
Qxf7 {[%emt 0:00:30]} 37. Nxf7 {[%emt 0:00:30]} Kxf7 {[%emt 0:00:30]} 38. d7 {
[%emt 0:00:30]} Bd8 {[%emt 0:00:30]} 39. Bd5+ {[%emt 0:00:30]} Ke7 {[%emt 0:00:
30]} 40. Bxb3 {[%emt 0:00:30]} Nd6 {[%emt 0:00:30]} 41. Ba4 {[%emt 0:30:30]}
1-0